fUST/lending_fUST_20240111
["ID","MTS","AMOUNT","RATE_DAILY","PERIOD"]
[311143837,1704930643824,-500.0,0.00030136,5]
[311143839,1704930643834,-500.0,0.00030136,2]
[311143841,1704930643845,-500.0,0.00030136,2]
[311143843,1704930643855,-500.0,0.00030136,2]
[311143845,1704930643865,-500.0,0.00030136,2]
[311143847,1704930643875,-500.0,0.00030136,2]
[311143849,1704930643885,-500.0,0.00030136,2]
[311143851,1704930643896,-500.0,0.00030136,2]
[311143853,1704930643906,-5000.0,0.00030137,2]
[311143855,1704930643918,-5000.0,0.00030137,2]
[311143857,1704930643928,-4237.89806551,0.00030137,2]
[311143859,1704930643938,-268.22145302,0.00030139,4]
[311143860,1704930643951,-500.0,0.00030139,4]
[311143862,1704930643962,-399.38730921,0.00030139,4]
[311143865,1704930643974,-475.67428333,0.00030139,4]
[311143866,1704930643985,-373.16504356,0.00030139,4]
[311143868,1704930643996,-500.0,0.00030139,4]
[311143870,1704930644007,-500.0,0.00030139,4]
[311143872,1704930644018,-500.0,0.00030139,4]
[311143874,1704930644029,-154.05037578,0.00030139,4]
[311143876,1704930644040,-500.0,0.00030139,4]
[311143878,1704930644051,-500.0,0.00030139,4]
[311143880,1704930644062,-500.0,0.00030139,4]
[311143882,1704930644073,-500.0,0.00030139,4]
[311143884,1704930644083,-215.80473145,0.00030139,4]
[311143886,1704930644095,-500.0,0.00030139,4]
[311143888,1704930644106,-476.26474749,0.00030139,4]
[311143890,1704930644117,-500.0,0.00030139,4]
[311143892,1704930644128,-153.07458896,0.00030163,7]
[311143894,1704930644139,-680.95063251,0.000302,3]
[311143895,1704930644150,-155.0,0.0003024,2]
[311143897,1704930644162,-151.18004956,0.00030243,2]
[311143899,1704930644172,-500.0,0.0003041,2]
[311143901,1704930644184,-500.0,0.0003041,2]
[311143903,1704930644196,-500.0,0.0003041,2]
[311143904,1704930644206,-500.0,0.0003041,2]
[311143915,1704930644336,-500.0,0.0003041,2]
[311143917,1704930644358,-500.0,0.0003041,2]
[311143919,1704930644380,-500.0,0.0003041,2]
[311143921,1704930644401,-500.0,0.0003041,2]
[311143923,1704930644423,-500.0,0.0003041,2]
[311143925,1704930644446,-505.56,0.0003041,2]
[311143927,1704930644466,-500.0,0.0003041,2]
[311143929,1704930644483,-500.0,0.0003041,2]
[311143930,1704930644493,-500.0,0.0003041,2]
[311143932,1704930644503,-600.638198,0.0003041,2]
[311143934,1704930644513,-500.0,0.0003041,2]
[311143936,1704930644523,-1412.23,0.0003041,2]
[311143938,1704930644533,-402.09100132,0.0003041,2]
[311143939,1704930644542,-500.0,0.0003041,2]
[311143941,1704930644552,-500.19121575,0.0003041,2]
[311143943,1704930644561,-310.36155904,0.0003041,2]
[311143945,1704930644570,-500.0,0.0003041,2]
[311143947,1704930644579,-500.0,0.0003041,2]
[311143949,1704930644588,-500.0,0.0003041,2]
[311143950,1704930644597,-500.0,0.0003041,2]
[311143952,1704930644606,-442.00248067,0.0003041,2]
[311143954,1704930644615,-758.72,0.0003041,2]
[311143956,1704930644623,-500.0,0.0003041,2]
[311143958,1704930644632,-500.0,0.0003041,2]
[311143959,1704930644641,-500.0,0.0003041,2]
[311143961,1704930644650,-500.0,0.0003041,2]
[311143963,1704930644659,-500.0,0.0003041,2]
[311143965,1704930644668,-500.0,0.0003041,2]
[311143967,1704930644677,-500.0,0.0003041,2]
[311143969,1704930644685,-500.0,0.0003041,2]
[311143970,1704930644697,-500.0,0.0003041,2]
[311143972,1704930644706,-500.0,0.0003041,2]
[311143974,1704930644714,-500.0,0.0003041,2]
[311143975,1704930644723,-500.0,0.0003041,2]
[311143977,1704930644732,-500.0,0.0003041,2]
[311143978,1704930644741,-500.0,0.0003041,2]
[311143980,1704930644750,-500.0,0.0003041,2]
[311143982,1704930644759,-500.0,0.0003041,2]
[311143984,1704930644768,-500.0,0.0003041,2]
[311143985,1704930644777,-500.0,0.0003041,2]
[311143987,1704930644786,-500.0,0.0003041,2]
[311143989,1704930644795,-500.0,0.0003041,2]
[311143991,1704930644804,-500.0,0.0003041,2]
[311143992,1704930644812,-500.0,0.0003041,2]
[311143994,1704930644821,-500.0,0.0003041,2]
[311143996,1704930644830,-500.0,0.0003041,2]
[311143997,1704930644839,-500.0,0.0003041,2]
[311143999,1704930644848,-503.4346223,0.0003041,2]
[311144001,1704930644858,-500.0,0.0003041,2]
[311144003,1704930644867,-500.0,0.0003041,2]
[311144005,1704930644876,-500.0,0.0003041,2]
[311144007,1704930644885,-500.0,0.0003041,2]
[311144008,1704930644894,-500.0,0.0003041,2]
[311144010,1704930644903,-500.0,0.0003041,2]
[311144012,1704930644912,-500.0,0.0003041,2]
[311144014,1704930644921,-339.41098139,0.0003041,2]
[311144015,1704930644931,-500.0,0.0003041,2]
[311144017,1704930644940,-500.0,0.0003041,2]
[311144019,1704930644952,-500.0,0.0003041,2]
[311144021,1704930644961,-683.42,0.0003041,2]
[311144023,1704930644970,-500.0,0.0003041,2]
[311144024,1704930644979,-500.0,0.0003041,2]
[311144026,1704930644988,-500.0,0.0003041,2]
[311144028,1704930644997,-500.0,0.0003041,2]
[311144030,1704930645007,-500.0,0.0003041,2]
[311144031,1704930645015,-500.0,0.0003041,2]
[311144033,1704930645025,-500.0,0.0003041,2]
[311144035,1704930645035,-500.0,0.0003041,2]
[311144037,1704930645044,-500.0,0.0003041,2]
[311144039,1704930645053,-500.0,0.0003041,2]
[311144040,1704930645063,-500.0,0.0003041,2]
[311144042,1704930645072,-500.0,0.0003041,2]
[311144044,1704930645081,-506.72737826,0.0003041,2]
[311144046,1704930645090,-505.78714595,0.0003041,2]
[311144047,1704930645100,-500.0,0.0003041,2]
[311144049,1704930645109,-500.0,0.0003041,2]
[311144051,1704930645118,-593.16940502,0.0003041,2]
[311144053,1704930645128,-500.0,0.0003041,2]
[311144054,1704930645137,-500.0,0.0003041,2]
[311144056,1704930645146,-500.0,0.0003041,2]
[311144058,1704930645155,-579.0,0.0003041,2]
[311144060,1704930645164,-173.83232581,0.0003041,2]
[311144062,1704930645173,-500.0,0.0003041,2]
[311144063,1704930645182,-500.0,0.0003041,2]
[311144065,1704930645191,-500.0,0.0003041,2]
[311144067,1704930645201,-500.0,0.0003041,2]
[311144069,1704930645210,-200.0,0.0003041,2]
[311144071,1704930645219,-500.0,0.0003041,2]
[311144073,1704930645228,-500.0,0.0003041,2]
[311144075,1704930645238,-500.0,0.0003041,2]
[311144077,1704930645248,-500.0,0.0003041,2]
[311144079,1704930645257,-500.0,0.0003041,2]
[311144081,1704930645266,-500.0,0.0003041,2]
[311144083,1704930645275,-500.0,0.0003041,2]
[311144084,1704930645284,-500.0,0.0003041,2]
[311144086,1704930645295,-500.0,0.0003041,2]
[311144088,1704930645304,-417.49108114,0.0003041,2]
[311144090,1704930645314,-908.31,0.0003041,2]
[311144092,1704930645325,-641.4105918,0.0003041,2]
[311144094,1704930645335,-500.0,0.0003041,2]
[311144096,1704930645346,-13018.66,0.0003041,2]
[311144097,1704930645356,-500.0,0.0003041,2]
[311144098,1704930645368,-500.0,0.0003041,2]
[311144099,1704930645379,-3202.48,0.0003041,2]
[311144100,1704930645390,-500.0,0.0003041,2]
[311144101,1704930645400,-500.0,0.0003041,2]
[311144102,1704930645412,-500.0,0.0003041,2]
[311144103,1704930645423,-500.0,0.0003041,2]
[311144104,1704930645433,-500.0,0.0003041,2]
[311144105,1704930645447,-500.0,0.0003041,2]
[311144106,1704930645459,-500.0,0.0003041,2]
[311144107,1704930645471,-497.22417374,0.0003041,2]
[311144108,1704930645481,-500.0,0.0003041,2]
[311144109,1704930645491,-500.0,0.0003041,2]
[311144110,1704930645501,-500.0,0.0003041,2]
[311144111,1704930645511,-540.53,0.0003041,2]
[311144112,1704930645521,-500.0,0.0003041,2]
[311144113,1704930645530,-154.29785145,0.0003041,2]
[311144115,1704930645539,-500.0,0.0003041,2]
[311144117,1704930645549,-500.0,0.0003041,2]
[311144119,1704930645558,-500.0,0.0003041,2]
[311144121,1704930645567,-500.0,0.0003041,2]
[311144123,1704930645577,-2522.91,0.0003041,2]
[311144125,1704930645586,-1124.38,0.0003041,2]
[311144127,1704930645596,-500.0,0.0003041,2]
[311144128,1704930645605,-500.0,0.0003041,2]
[311144129,1704930645616,-4683.1,0.0003041,2]
[311144131,1704930645625,-500.0,0.0003041,2]
[311144133,1704930645633,-2741.15,0.0003041,2]
[311144135,1704930645642,-500.0,0.0003041,2]
[311144137,1704930645651,-500.0,0.0003041,2]
[311144139,1704930645660,-2212.51,0.0003041,2]
[311144141,1704930645671,-500.0,0.0003041,2]
[311144143,1704930645680,-8095.11,0.0003041,2]
[311144145,1704930645689,-614.27,0.0003041,2]
[311144147,1704930645703,-500.0,0.0003041,2]
[311144150,1704930645713,-500.0,0.0003041,2]
[311144153,1704930645722,-614.53629974,0.0003041,2]
[311144156,1704930645730,-817.75,0.0003041,2]
[311144158,1704930645740,-500.0,0.0003041,2]
[311144160,1704930645749,-500.0,0.0003041,2]
[311144162,1704930645759,-500.0,0.0003041,2]
[311144164,1704930645768,-1765.33,0.0003041,2]
[311144166,1704930645778,-693.7,0.0003041,2]
[311144168,1704930645788,-557.04,0.0003041,2]
[311144170,1704930645798,-500.0,0.0003041,2]
[311144172,1704930645807,-503.15020876,0.0003041,2]
[311144174,1704930645816,-500.0,0.0003041,2]
[311144176,1704930645825,-500.0,0.0003041,2]
[311144178,1704930645834,-754.07,0.0003041,2]
[311144180,1704930645843,-500.0,0.0003041,2]
[311144182,1704930645852,-525.98,0.0003041,2]
[311144184,1704930645861,-500.0,0.0003041,2]
[311144186,1704930645870,-500.0,0.0003041,2]
[311144188,1704930645880,-1285.07,0.0003041,2]
[311144190,1704930645889,-755.5,0.0003041,2]
[311144192,1704930645899,-500.0,0.0003041,2]
[311144194,1704930645908,-500.0,0.0003041,2]
[311144196,1704930645917,-500.0,0.0003041,2]
[311144198,1704930645926,-158.5365866,0.0003041,5]
[311144200,1704930645935,-500.0,0.0003041,2]
[311144202,1704930645949,-500.0,0.0003041,2]
[311144204,1704930645959,-500.0,0.0003041,2]
[311144206,1704930645968,-500.0,0.0003041,2]
[311144208,1704930645977,-500.0,0.0003041,2]
[311144210,1704930645987,-155.031497,0.00030449,2]
[311144212,1704930645996,-155.031496,0.00030449,2]
[311144214,1704930646006,-1500.0,0.000305,2]
[311144216,1704930646015,-620.01206643,0.00030561,2]
[311144218,1704930646025,-500.0,0.00030684,2]
[311144220,1704930646035,-500.0,0.00030684,2]
[311144222,1704930646044,-500.0,0.00030684,2]
[311144224,1704930646053,-500.0,0.00030684,2]
[311144226,1704930646062,-505.56,0.00030684,2]
[311144228,1704930646071,-500.0,0.00030684,2]
[311144230,1704930646080,-1412.23,0.00030684,2]
[311144232,1704930646089,-262.51226806,0.00030684,2]
[311144234,1704930646099,-500.0,0.00030684,2]
[311144236,1704930646108,-758.72,0.00030684,2]
[311144238,1704930646117,-500.0,0.00030684,2]
[311144240,1704930646126,-500.0,0.00030684,2]
[311144241,1704930646135,-524.90821078,0.00030684,2]
[311144243,1704930646145,-500.0,0.00030684,2]
[311144245,1704930646154,-500.0,0.00030684,2]
[311144247,1704930646165,-500.0,0.00030684,2]
[311144249,1704930646175,-500.0,0.00030684,2]
[311144251,1704930646184,-500.0,0.00030684,2]
[311144254,1704930646200,-500.0,0.00030684,2]
[311144255,1704930646209,-500.0,0.00030684,2]
[311144257,1704930646218,-500.0,0.00030684,2]
[311144259,1704930646234,-500.0,0.00030684,2]
[311144261,1704930646244,-500.0,0.00030684,2]
[311144263,1704930646253,-529.64213588,0.00030684,2]
[311144265,1704930646265,-500.0,0.00030684,2]
[311144267,1704930646274,-500.0,0.00030684,2]
[311144269,1704930646284,-500.0,0.00030684,2]
[311144271,1704930646294,-500.0,0.00030684,2]
[311144273,1704930646302,-500.0,0.00030684,2]
[311144275,1704930646312,-501.18917969,0.00030684,2]
[311144277,1704930646322,-500.0,0.00030684,2]
[311144279,1704930646336,-161.74440105,0.00030684,2]
[311144281,1704930646346,-500.0,0.00030684,2]
[311144283,1704930646355,-500.0,0.00030684,2]
[311144285,1704930646364,-500.0,0.00030684,2]
[311144287,1704930646373,-500.0,0.00030684,2]
[311144289,1704930646384,-500.0,0.00030684,2]
[311144291,1704930646393,-500.0,0.00030684,2]
[311144293,1704930646402,-683.42,0.00030684,2]
[311144295,1704930646412,-500.0,0.00030684,2]
[311144297,1704930646421,-500.0,0.00030684,2]
[311144299,1704930646430,-500.0,0.00030684,2]
[311144301,1704930646439,-500.0,0.00030684,2]
[311144303,1704930646451,-500.0,0.00030684,2]
[311144305,1704930646460,-500.0,0.00030684,2]
[311144307,1704930646469,-500.0,0.00030684,2]
[311144308,1704930646478,-500.0,0.00030684,2]
[311144311,1704930646487,-500.0,0.00030684,2]
[311144312,1704930646497,-500.0,0.00030684,2]
[311144314,1704930646506,-500.0,0.00030684,2]
[311144317,1704930646516,-500.0,0.00030684,2]
[311144319,1704930646525,-500.0,0.00030684,2]
[311144320,1704930646535,-500.0,0.00030684,2]
[311144323,1704930646544,-499.95383034,0.00030684,2]
[311144324,1704930646553,-500.0,0.00030684,2]
[311144326,1704930646563,-579.0,0.00030684,2]
[311144329,1704930646572,-500.0,0.00030684,2]
[311144330,1704930646581,-500.0,0.00030684,2]
[311144332,1704930646591,-255.49757785,0.00030684,2]
[311144334,1704930646599,-500.0,0.00030684,2]
[311144336,1704930646608,-200.0,0.00030684,2]
[311144338,1704930646618,-500.0,0.00030684,2]
[311144340,1704930646627,-508.5740827,0.00030684,2]
[311144342,1704930646636,-407.09468989,0.00030684,2]
[311144344,1704930646645,-500.0,0.00030684,2]
[311144346,1704930646654,-500.0,0.00030684,2]
[311144348,1704930646663,-593.46576215,0.00030684,2]
[311144350,1704930646672,-500.0,0.00030684,2]
[311144352,1704930646682,-500.0,0.00030684,2]
[311144354,1704930646691,-908.31,0.00030684,2]
[311144356,1704930646703,-500.0,0.00030684,2]
[311144358,1704930646712,-13018.66,0.00030684,2]
[311144360,1704930646721,-500.0,0.00030684,2]
[311144362,1704930646729,-500.0,0.00030684,2]
[311144364,1704930646738,-3202.48,0.00030684,2]
[311144366,1704930646747,-500.0,0.00030684,2]
[311144368,1704930646756,-500.0,0.00030684,2]
[311144370,1704930646765,-500.0,0.00030684,2]
[311144372,1704930646774,-500.0,0.00030684,2]
[311144374,1704930646783,-500.0,0.00030684,2]
[311144376,1704930646792,-500.0,0.00030684,2]
[311144378,1704930646802,-500.0,0.00030684,2]
[311144380,1704930646812,-500.0,0.00030684,2]
[311144382,1704930646821,-500.0,0.00030684,2]
[311144384,1704930646829,-540.53,0.00030684,2]
[311144386,1704930646838,-500.0,0.00030684,2]
[311144388,1704930646848,-500.0,0.00030684,2]
[311144390,1704930646857,-500.0,0.00030684,2]
[311144392,1704930646866,-500.0,0.00030684,2]
[311144394,1704930646876,-2522.91,0.00030684,2]
[311144396,1704930646886,-306.62611969,0.00030684,2]
[311144398,1704930646895,-1124.38,0.00030684,2]
[311144400,1704930646905,-500.0,0.00030684,2]
[311144402,1704930646915,-4683.1,0.00030684,2]
[311144404,1704930646925,-500.0,0.00030684,2]
[311144406,1704930646934,-2741.15,0.00030684,2]
[311144408,1704930646946,-500.0,0.00030684,2]
[311144419,1704930647044,-500.0,0.00030684,2]
[311144421,1704930647054,-2212.51,0.00030684,2]
[311144423,1704930647063,-8095.11,0.00030684,2]
[311144425,1704930647072,-614.27,0.00030684,2]
[311144427,1704930647081,-500.0,0.00030684,2]
[311144429,1704930647091,-500.0,0.00030684,2]
[311144430,1704930647100,-817.75,0.00030684,2]
[311144432,1704930647109,-500.0,0.00030684,2]
[311144434,1704930647118,-500.0,0.00030684,2]
[311144436,1704930647127,-1765.33,0.00030684,2]
[311144438,1704930647137,-693.7,0.00030684,2]
[311144440,1704930647146,-557.04,0.00030684,2]
[311144442,1704930647155,-500.0,0.00030684,2]
[311144444,1704930647164,-500.0,0.00030684,2]
[311144446,1704930647173,-500.0,0.00030684,2]
[311144448,1704930647182,-754.07,0.00030684,2]
[311144450,1704930647192,-500.0,0.00030684,2]
[311144452,1704930647202,-525.98,0.00030684,2]
[311144454,1704930647211,-500.0,0.00030684,2]
[311144456,1704930647220,-1285.07,0.00030684,2]
[311144458,1704930647229,-755.5,0.00030684,2]
[311144460,1704930647238,-229.52217026,0.00030684,2]
[311144462,1704930647248,-500.0,0.00030684,2]
[311144464,1704930647257,-500.0,0.00030684,2]
[311144466,1704930647267,-500.0,0.00030684,2]
[311144468,1704930647276,-549.89327927,0.00030684,2]
[311144471,1704930647285,-500.0,0.00030684,2]
[311144472,1704930647295,-500.0,0.00030684,2]
[311144474,1704930647303,-500.0,0.00030684,2]
[311144476,1704930647313,-151.0,0.00030806,2]
[311144478,1704930647322,-155.031497,0.00030825,2]
[311144480,1704930647331,-155.031496,0.00030825,2]
[311144482,1704930647340,-620.00055288,0.00030838,2]
[311144484,1704930647349,-5747.75732855,0.00030887,2]
[311144486,1704930647358,-207.82002742,0.00030887,2]
[311144488,1704930647367,-2000.0,0.000309,2]
[311144490,1704930647375,-2000.0,0.0003091,2]
[311144492,1704930647385,-2000.0,0.0003092,2]
[311144494,1704930647393,-2000.0,0.0003093,2]
[311144496,1704930647402,-2000.0,0.0003094,2]
[311144498,1704930647411,-2000.0,0.0003095,2]
[311144500,1704930647420,-500.0,0.00030958,2]
[311144502,1704930647430,-500.0,0.00030958,2]
[311144504,1704930647439,-500.0,0.00030958,2]
[311144506,1704930647450,-505.56,0.00030958,2]
[311144508,1704930647459,-202.26,0.00030958,2]
[311144510,1704930647468,-1412.23,0.00030958,2]
[311144512,1704930647477,-500.0,0.00030958,2]
[311144514,1704930647486,-758.72,0.00030958,2]
[311144516,1704930647495,-500.0,0.00030958,2]
[311144518,1704930647504,-336.68,0.00030958,2]
[311144520,1704930647513,-500.0,0.00030958,2]
[311144522,1704930647523,-500.0,0.00030958,2]
[311144524,1704930647532,-500.0,0.00030958,2]
[311144526,1704930647541,-500.0,0.00030958,2]
[311144528,1704930647550,-500.0,0.00030958,2]
[311144530,1704930647559,-500.0,0.00030958,2]
[311144532,1704930647568,-500.0,0.00030958,2]
[311144534,1704930647577,-500.0,0.00030958,2]
[311144536,1704930647586,-500.0,0.00030958,2]
[311144538,1704930647595,-500.0,0.00030958,2]
[311144540,1704930647605,-683.42,0.00030958,2]
[311144542,1704930647614,-500.0,0.00030958,2]
[311144544,1704930647623,-500.0,0.00030958,2]
[311144546,1704930647632,-500.0,0.00030958,2]
[311144548,1704930647641,-500.0,0.00030958,2]
[311144550,1704930647651,-500.0,0.00030958,2]
[311144552,1704930647660,-407.63088715,0.00030958,2]
[311144554,1704930647668,-500.0,0.00030958,2]
[311144556,1704930647677,-500.0,0.00030958,2]
[311144558,1704930647686,-579.0,0.00030958,2]
[311144560,1704930647697,-500.0,0.00030958,2]
[311144562,1704930647705,-500.0,0.00030958,2]
[311144564,1704930647715,-500.0,0.00030958,2]
[311144566,1704930647723,-500.0,0.00030958,2]
[311144568,1704930647732,-500.0,0.00030958,2]
[311144569,1704930647742,-109.06317531,0.00030958,2]
[311144582,1704930647851,-799.24682469,0.00030958,2]
[311144584,1704930647861,-600.04283683,0.00030958,2]
[311144586,1704930647870,-7815.43212266,0.00030958,2]
[311144588,1704930647884,-1073.71701622,0.00030958,2]
[311144633,1704930648313,-158.8833364,0.00015245,2]
[311144635,1704930648327,-19.63372454,0.00015245,2]
[311144637,1704930648336,-360.7362932,0.00015245,2]
[311144639,1704930648349,-1067.08288417,0.00015245,2]
[311144641,1704930648358,-500.0,0.0003041,2]
[311144643,1704930648368,-278.63115489,0.00030684,2]
[311144645,1704930648377,-4129.51086112,0.00030958,2]
[311144647,1704930648386,-500.0,0.00030958,2]
[311144649,1704930648395,-522.58691347,0.00030958,2]
[311144651,1704930648404,-313.78494549,0.00030958,2]
[311144654,1704930648419,-2888.69505451,0.00030958,2]
[311144656,1704930648428,-500.0,0.00030958,2]
[311144658,1704930648437,-500.0,0.00030958,2]
[311144660,1704930648448,-500.0,0.00030958,2]
[311144661,1704930648457,-589.69,0.00030958,2]
[311144663,1704930648466,-500.0,0.00030958,2]
[311144665,1704930648475,-540.53,0.00030958,2]
[311144667,1704930648485,-500.0,0.00030958,2]
[311144669,1704930648494,-369.52,0.00030958,2]
[311144671,1704930648503,-388.63541319,0.00030958,2]
[311144674,1704930648516,-111.36458681,0.00030958,2]
[311144676,1704930648524,-2522.91,0.00030958,2]
[311144678,1704930648534,-1124.38,0.00030958,2]
[311144680,1704930648542,-500.0,0.00030958,2]
[311144682,1704930648552,-4683.1,0.00030958,2]
[311144683,1704930648560,-500.0,0.00030958,2]
[311144686,1704930648570,-2741.15,0.00030958,2]
[311144687,1704930648579,-500.0,0.00030958,2]
[311144689,1704930648588,-2212.51,0.00030958,2]
[311144691,1704930648597,-8095.11,0.00030958,2]
[311144693,1704930648607,-614.27,0.00030958,2]
[311144695,1704930648615,-817.75,0.00030958,2]
[311144697,1704930648624,-500.0,0.00030958,2]
[311144699,1704930648633,-1765.33,0.00030958,2]
[311144701,1704930648642,-693.7,0.00030958,2]
[311144703,1704930648651,-557.04,0.00030958,2]
[311144705,1704930648660,-500.0,0.00030958,2]
[311144707,1704930648670,-511.15113817,0.00030958,2]
[311144709,1704930648679,-754.07,0.00030958,2]
[311144711,1704930648688,-525.98,0.00030958,2]
[311144712,1704930648699,-500.0,0.00030958,2]
[311144713,1704930648708,-1285.07,0.00030958,2]
[311144714,1704930648718,-755.5,0.00030958,2]
[311144715,1704930648727,-500.0,0.00030958,2]
[311144716,1704930648735,-500.0,0.00030958,2]
[311144717,1704930648744,-500.0,0.00030958,2]
[311144718,1704930648752,-2000.0,0.0003096,2]
[311144719,1704930648761,-2000.0,0.0003097,2]
[311144720,1704930648770,-2000.0,0.0003098,2]
[311144721,1704930648779,-2000.0,0.0003099,2]
[311144722,1704930648788,-5878.72210021,0.00031,4]
[311144723,1704930648800,-1800.1390251,0.00031,4]
[311144735,1704930648935,-155.04341216,0.0002,2]
[311144737,1704930648948,-500.0,0.00030136,2]
[311144739,1704930648958,-15579.00668062,0.00031,4]
[311144741,1704930648970,-11413.9979508,0.00031,4]
[311144744,1704930648981,-6101.54789378,0.00031,4]
[311144771,1704930649243,-4052.3172748,0.00031,4]
[311144775,1704930649276,-4681.7,0.00030126,3]
[311146991,1704930946153,-155.05116689,0.00019178,2]
[311146992,1704931019499,151.04682452,0.00028818,30]
[311146993,1704931027720,-1067.08288417,0.00019175,2]
[311146994,1704931027743,-360.7362932,0.00019175,2]
[311146995,1704931027765,-3572.18082263,0.00019176,2]
[311146996,1704931042347,200.0,0.0002109,7]
[311146997,1704931043115,280.0,0.00023199,7]
[311146998,1704931162160,-1067.08288417,0.00018333,2]
[311146999,1704931188080,-230.48582873,0.00018331,2]
[311147000,1704931188105,-1175.22058429,0.00018331,2]
[311147001,1704931210969,-4321.57963105,0.00017332,2]
[311147004,1704931344294,391.0,0.0002305,7]
[311147005,1704931353014,462.9180712,0.00015597,2]
[311147006,1704931379144,4537.0819288,0.00015597,2]
[311147009,1704931429833,2138.00848953,0.00016,5]
[311147010,1704931508506,151.02114296,0.00027406,30]
[311147011,1704931508564,151.02114296,0.00026858,120]
[311147015,1704931541181,438.6540806,0.00014488,2]
[311147017,1704931588998,1146.61542049,0.00027412,30]
[311147018,1704931590687,9561.3459194,0.00014488,2]
[311147052,1704931644733,200.0,0.00021203,7]
[311147053,1704931645530,348.0,0.00021203,7]
[311147054,1704931646310,200.0,0.00023323,7]
[311147055,1704931647098,200.0,0.00023323,7]
[311147056,1704931647871,368.0,0.00023323,7]
[311147057,1704931655161,10000.0,0.00013486,2]
[311147161,1704931832243,-1239.896093,0.00013466,2]
[311147162,1704931832253,-20861.46383375,0.00013467,2]
[311147163,1704931832262,-23812.32037109,0.00013467,2]
[311147164,1704931832272,-7943.71182072,0.00013468,2]
[311147165,1704931832281,-155.01550155,0.00013468,2]
[311147166,1704931832291,-4788.51765555,0.00013468,2]
[311147168,1704931832301,-642.93704766,0.00013469,2]
[311147170,1704931832312,-1575.9466697,0.00013469,2]
[311147172,1704931832321,-155.01550155,0.00013469,2]
[311147174,1704931832331,-4054.80187695,0.00013469,2]
[311147392,1704931838996,-7987.09073251,0.00013464,2]
[311147394,1704931839005,-5000.0,0.00013465,2]
[311147395,1704931839015,-2927.32783457,0.00013465,2]
[311147396,1704931839024,-964.55150019,0.00013466,2]
[311147397,1704931839033,-1067.08288417,0.00013466,2]
[311147398,1704931839042,-16778.13278611,0.00013469,2]
[311147399,1704931839052,-198.82408315,0.0001347,2]
[311147400,1704931839061,-3737.95560178,0.0001347,2]
[311147401,1704931839071,-155.01550155,0.00013471,2]
[311147402,1704931839081,-322.83363774,0.00013471,2]
[311147403,1704931839089,-708.28255979,0.00013471,2]
[311147404,1704931839100,-242.59429943,0.00013471,2]
[311147405,1704931839109,-1250.66144998,0.00013471,2]
[311147406,1704931839118,-14900.0,0.00013486,2]
[311147407,1704931839127,-18865.85488205,0.00013486,2]
[311147408,1704931839136,-5048.78531228,0.00015481,2]
[311147409,1704931839145,-850.75857141,0.00015588,2]
[311147410,1704931839155,-179.87891561,0.0001559,2]
[311147411,1704931839164,-1030.93287824,0.0001559,2]
[311147412,1704931839173,-6165.34199068,0.00015594,2]
[311147413,1704931839182,-478.50278928,0.00015594,2]
[311147414,1704931839191,-155.02635448,0.00015597,2]